Cogmind - Beta 9.6 @@@ ROGUE MODE // 2020.08.03 @ 09:16:55 Player: Alexbot Result: Self-destructed Performance ------------- Evolutions (3) 1500 Regions Visited (12) 2400 Robots Destroyed (138) 690 Value Destroyed (4062) 4062 Prototype IDs (33) 660 Alien Tech Used (0) 0 Bonus (6622) 6622 TOTAL SCORE: 15934 Bonus ------- Pacifist 200 High Alert Combat Kills 546 Follower Combat Kills 74 Aligned with FarCom 300 Destroyed Z-Imprinter 1000 Triggered Deep Caves Wall 500 Exposed GOLEM Chamber 4500 Friendly Fire -498 Cogmind --------- Core Integrity 24/700 Matter 8/300 Energy 52/100 System Corruption 4% Temperature Cool (0) Movement Core (1350) Ox26 Location -7/Deep Caves Parts ------- > --- POWER (1) -------- (None) > --- PROPULSION (2) --- (None) > --- UTILITY (6) ------ Large Storage Unit Large Storage Unit High-capacity Storage Unit Makeshift Salvage Targeting Computer Nanoactuators > --- WEAPON (4) ------- XL Autogun Array > --- INVENTORY (24) --- Zionite Composite Leg I Armored Huge Wheel Zionite Biocell (1000) Zionite Metafield Generator Advanced Terrain Scan Processor Energy Filter Force Booster Advanced Reaction Control System Improved Propulsion Shielding Improved Utility Shielding Phasing AFG EM Pulse Cannon EM Pulse Cannon Flak Gun Makeshift Shrapnel Gun Improved Datajack Molecular Deconstructor Peak State ------------ > --- POWER ------------ Zionite Light DM Reactor > --- PROPULSION ------- Armored Huge Wheel > --- UTILITY ---------- Experimental Heat Sink Large Storage Unit Large Storage Unit High-capacity Storage Unit Makeshift Salvage Targeting Computer Zionite Weapon Casing > --- WEAPON ----------- XL Autogun Array > --- INVENTORY -------- Zionite Light DM Reactor Zionite Composite Leg I Zionite Biocell Zionite Metafield Generator Advanced Terrain Scan Processor Energy Filter Microactuators Nanoactuators Force Booster Advanced Reaction Control System Improved Propulsion Shielding Improved Utility Shielding Phasing AFG EM Pulse Cannon EM Pulse Cannon Flak Gun Makeshift Shrapnel Gun Improved Datajack Plasma Cutter Molecular Deconstructor Greatsword [Rating: 84] Favorites ----------- Power Light Nuclear Core Engine Improved Ion Engine Power Core Light Nuclear Core Reactor Zionite Light DM Reactor Propulsion Advanced Treads Treads Advanced Treads Leg Aluminum Leg Wheel Armored Huge Wheel Flight Unit Cooled VTOL Module Utility Large Storage Unit Device Experimental Sensor Array Storage Large Storage Unit Processor Improved Signal Interpreter Protection Core Shielding Weapon Enhanced Autogun Energy Gun Heavy EM Pulse Gun Energy Cannon Plasma Cannon Ballistic Gun Enhanced Autogun Ballistic Cannon Light Cannon Slashing Weapon Greatsword Special Melee Weapon Improved Datajack Build | -11 -10 -10 -9 -9 -9 -8 -8 -7 -7 -7 -7 -7 ------- Run | Scr Mat Min Mat Min Exi Min Mat Fac Low Low Zio Dee Slots Evolved 6 | . . . 2 . . . 2 2 . . . . Power . | . . . . . . . . . . . . . Propulsion . | . . . . . . . . . . . . . Utility 4 | . . . 2 . . . . 2 . . . . Weapon 2 | . . . . . . . 2 . . . . . Parts Attached 155 | . . 3 11 7 4 6 51 23 6 23 . 21 Power 15 | . . . 4 . 1 1 5 . . 2 . 2 Engine 7 | . . . 4 . 1 . 1 . . 1 . . Core 6 | . . . . . . 1 4 . . 1 . . Reactor 2 | . . . . . . . . . . . . 2 Propulsion 20 | . . . 2 2 1 2 11 1 . 1 . . Treads 6 | . . . 2 . . . 3 1 . . . . Leg 9 | . . . . 2 1 2 4 . . . . . Wheel 3 | . . . . . . . 2 . . 1 . . Hover . | . . . . . . . . . . . . . Flight 2 | . . . . . . . 2 . . . . . Utility 64 | . . 3 3 1 1 1 15 11 6 11 . 12 Device 27 | . . . 1 . . 1 8 3 3 5 . 6 Storage 16 | . . 3 2 . 1 . 5 3 . . . 2 Processor 3 | . . . . . . . . 1 . 1 . 1 Hackware . | . . . . . . . . . . . . . Protection 18 | . . . . 1 . . 2 4 3 5 . 3 Artifact . | . . . . . . . . . . . . . Weapon 56 | . . . 2 4 1 2 20 11 . 9 . 7 Energy Gun 10 | . . . . 4 1 1 3 . . 1 . . Energy Cannon 5 | . . . . . . . 2 . . 1 . 2 Ballistic Gun 31 | . . . 1 . . . 13 9 . 5 . 3 Ballistic Cannon 1 | . . . 1 . . . . . . . . . Launcher . | . . . . . . . . . . . . . Special Weapon . | . . . . . . . . . . . . . Impact Weapon . | . . . . . . . . . . . . . Slashing Weapon 7 | . . . . . . 1 . 2 . 2 . 2 Piercing Weapon . | . . . . . . . . . . . . . Special Melee Weapon 2 | . . . . . . . 2 . . . . . Unidentified Prototypes 11 | . . . 1 . . 1 3 . . . . 6 Parts Lost 36 | . . 4 . 6 5 2 6 2 . 5 . 6 Power 6 | . . 1 . . . 1 2 . . 1 . 1 Propulsion 7 | . . 1 . 1 2 1 1 . . 1 . . Utility 7 | . . . . 1 . . . 1 . 1 . 4 Weapon 16 | . . 2 . 4 3 . 3 1 . 2 . 1 Highest Loss Streak 5 | . . 4 . 3 5 2 2 1 . 2 . 3 Average Slot Usage (%) 86 | . 85 94 75 97 86 59 77 94 100 87 84 69 Engine 4 | . 14 13 10 11 11 1 . . . 1 7 1 Core 3 | . . . . . . 1 7 7 7 2 . . Treads 6 | . . . 21 2 . . 3 15 15 10 . . Leg 6 | . 28 27 . 19 20 5 10 . . . . . Wheel 1 | . . . . . . . 2 . . 1 7 6 Device 4 | . . . 1 10 . 2 7 6 5 1 . 6 Storage 23 | . 14 26 20 22 25 24 7 27 30 30 30 24 Processor 4 | . . . . . . . . 4 7 9 15 8 Protection 4 | . . . . 9 11 8 6 1 1 2 . 4 Energy Gun 5 | . 28 25 . 19 18 6 1 . . 1 7 . Ballistic Gun 14 | . . . 10 1 . . 20 28 30 21 7 6 Slashing Weapon 1 | . . . . . . 8 . . . 2 7 . Naked Turns 24 | . . 16 7 . . 1 . . . . . . Heaviest Build 113 | 10 10 30 38 40 55 51 60 109 109 113 88 91 Greatest Support 46 | 20 20 20 46 46 23 20 44 44 44 44 28 28 Greatest Overweight (x) 15 | . . 2 2 2 5 15 4 2 2 4 3 3 Average Overweight (x) 1 | . . . . . 1 . . 1 2 2 3 2 Largest Inventory Capacity 28 | . 6 14 14 14 20 20 16 28 28 28 28 28 Average Capacity 19 | . 6 12 13 14 16 15 7 23 28 28 28 24 Most Carried 28 | . 6 9 8 10 14 8 15 27 28 28 28 28 Average Carried 16 | . 5 7 3 8 10 6 6 21 27 26 27 23 Final Capacity 28 | 6 6 4 14 14 20 4 16 28 28 28 28 24 Final Carried 28 | 6 5 4 8 8 9 4 15 27 28 26 28 19 Class Distribution -------------------- 31% | Mutant 19% | Hauler-Skirmisher 17% | Hauler-Mutant 13% | Tank 11% | Hauler-Tank 3% | Hauler-Gunner Dominant Class ---------------- Mutant | -10/Materials Mutant | -10/Mines Mutant | -9/Materials Mutant | -9/Mines Mutant | -9/Exiles Hauler-Mutant | -8/Mines Tank | -8/Materials Hauler-Skirmisher | -7/Factory Hauler-Skirmisher | -7/Lower Caves Hauler-Mutant | -7/Lower Caves Hauler-Mutant | -7/Zion Hauler-Tank | -7/Deep Caves Resources | -11 -10 -10 -9 -9 -9 -8 -8 -7 -7 -7 -7 -7 ----------- Run | Scr Mat Min Mat Min Exi Min Mat Fac Low Low Zio Dee Matter Collected 4773 | 200 . 30 257 163 . 49 1949 479 199 865 37 545 Remotely . | . . . . . . . . . . . . . Salvage Created 5159 | . . . 203 315 . 148 2340 467 194 478 . 1014 Parts 279 | . . . 16 26 . 8 131 27 7 30 . 34 Haulers Intercepted 3 | . . . . . . . 3 . . . . . Recyclers Shooed 3 | . . . . . . . 3 . . . . . Parts Field Recycled . | . . . . . . . . . . . . . Retrieved Matter . | . . . . . . . . . . . . . Parts Self-Destructed 40 | . . . . . . . . . 10 30 . . Prevented . | . . . . . . . . . . . . . Kills | -11 -10 -10 -9 -9 -9 -8 -8 -7 -7 -7 -7 -7 ------- Run | Scr Mat Min Mat Min Exi Min Mat Fac Low Low Zio Dee Combat Hostiles Destroyed 119 | . . . 6 14 . 3 50 6 3 8 . 29 Melee 9 | . . . . . . 1 . . . 1 . 7 Guns 104 | . . . 3 14 . 2 48 6 3 7 . 21 Cannons 5 | . . . 3 . . . 2 . . . . . Classes Destroyed 20 | . . . 5 1 . 1 5 1 1 3 . 3 Worker 3 | . . . 1 . . . 2 . . . . . Hauler 3 | . . . . . . . 3 . . . . . Recycler 5 | . . . . . . . 3 2 . . . . Minesweeper 1 | . . . . . . . . . 1 . . . Operator 1 | . . . . . . . 1 . . . . . Watcher 5 | . . . 1 . . . 1 3 . . . . Swarmer 29 | . . . 3 12 . . 11 3 . . . . Grunt 33 | . . . 1 1 . 2 26 . 3 . . . Brawler 3 | . . . . . . 1 2 . . . . . Duelist 3 | . . . . 1 . . 2 . . . . . Protector 1 | . . . . . . . 1 . . . . . Sentry 10 | . . . 2 . . . 7 1 . . . . Specialist 3 | . . . . . . . . . . 3 . . Hunter 4 | . . . . . . . 1 1 . 2 . . Programmer 2 | . . . . . . . . 1 . 1 . . Behemoth 1 | . . . . . . . . . . 1 . . Enhanced Grunt 1 | . . . . . . . . . . . . 1 Z-Light 6 | . . . . . . . . . . . . 6 Master Thief 1 | . . . . . . . . . . 1 . . Assembled 22 | . . . . . . . . . . . . 22 Golem 1 | . . . . . . . . . . . . 1 Best Kill Streak 20 | . . . 4 4 . 3 7 2 2 2 . 20 Combat Bots Only 20 | . . . 3 4 . 3 6 2 2 2 . 20 Max Kills in Single Turn 2 | . . . 2 1 . 1 2 1 2 1 . 2 Gunslinging 1 | . . . . . . . . . 1 . . . Exploded . | . . . . . . . . . . . . . Melee 1 | . . . . . . 1 . . . 1 . 1 Uniques/NPCs Destroyed 1 | . . . . . . . . . . . . 1 Z-Imprinter (-7/Deep Caves) Combat | -11 -10 -10 -9 -9 -9 -8 -8 -7 -7 -7 -7 -7 -------- Run | Scr Mat Min Mat Min Exi Min Mat Fac Low Low Zio Dee Damage Taken 8709 | . 91 345 501 631 629 171 2242 402 103 1135 . 2459 Core 1449 | . 25 97 99 127 95 38 292 24 13 175 . 464 Absorbed by Shields . | . . . . . . . . . . . . . Core Remaining (%) 51 | 100 . 51 . . . 10 46 . . . . . Volleys Fired 379 | . . . 24 39 2 7 177 24 5 52 . 49 Largest 4 | . . . 2 2 2 1 4 4 4 4 . 2 Hottest 185 | . . . 55 90 90 45 185 98 96 96 . 126 Shots Fired 900 | . . . 48 76 4 7 412 90 20 189 . 54 Gun 836 | . . . 24 66 4 7 393 90 20 188 . 44 Cannon 64 | . . . 24 10 . . 19 . . 1 . 10 Launcher . | . . . . . . . . . . . . . Special . | . . . . . . . . . . . . . Kinetic 787 | . . . 48 29 . . 368 90 20 188 . 44 Thermal 45 | . . . . . . . 44 . . 1 . . Explosive . | . . . . . . . . . . . . . Electromagnetic 68 | . . . . 47 4 7 . . . . . 10 Robot Hit Streak 17 | . . . 16 7 1 4 14 11 4 17 . 7 Robot Miss Streak 13 | . . . 2 4 2 3 7 4 2 4 . 13 Penetration Max . | . . . . . . . . . . . . . Secondary Targets 7 | . . . . 1 . . 5 . 1 . . . Max Gunslinging Chain 1 | . . . . 1 . . 1 . 1 . . . Shots Hit Robots 603 | . . . 34 44 1 7 278 48 11 119 . 61 Core Hits 246 | . . . 13 16 . 5 115 22 6 25 . 44 Critical Hits 8 | . . . 1 1 . . 3 1 . 2 . . Critical Kills 1 | . . . . . . . 1 . . . . . Critical Parts Destroyed 7 | . . . 1 1 . . 2 1 . 2 . . Melee Attacks 39 | . . . . . . 2 4 3 . 8 . 22 Impact . | . . . . . . . . . . . . . Slashing 35 | . . . . . . 2 . 3 . 8 . 22 Piercing . | . . . . . . . . . . . . . Sneak Attacks 3 | . . . . . . . 3 . . . . . Combat Hostiles . | . . . . . . . . . . . . . Follow-up Attacks . | . . . . . . . . . . . . . Damage Inflicted 12242 | . 2 . 481 662 12 148 4993 842 195 1787 . 3120 Guns 10203 | . . . 227 578 12 96 4658 842 195 1638 . 1957 Cannons 798 | . . . 254 36 . . 335 . . . . 173 Explosions 177 | . . . . 48 . . . . . . . 129 Melee 1062 | . . . . . . 52 . . . 149 . 861 Ramming 2 | . 2 . . . . . . . . . . . Kinetic 9750 | . . . 481 235 . . 4402 842 195 1638 . 1957 Thermal 768 | . . . . 48 . . 591 . . . . 129 Explosive . | . . . . . . . . . . . . . Electromagnetic 660 | . . . . 379 12 96 . . . . . 173 Impact . | . . . . . . . . . . . . . Slashing 1062 | . . . . . . 52 . . . 149 . 861 Piercing . | . . . . . . . . . . . . . Highest Corruption 5 | . . . . . . . 4 . . 5 5 4 Average Corruption 3 | . . . . . . . 3 . . 4 5 4 Corruption Purged . | . . . . . . . . . . . . . Effects 80 | . . . . . . . 53 . . 23 2 2 Message Errors 20 | . . . . . . . 9 . . 9 1 1 Matter Fused 18 | . . . . . . . 14 . . 3 1 . Heat Flow Errors 6 | . . . . . . . 6 . . . . . Energy Discharges 8 | . . . . . . . 5 . . 2 . 1 Parts Rejected 1 | . . . . . . . . . . 1 . . Data Loss (minor) 8 | . . . . . . . 5 . . 3 . . Misfires 1 | . . . . . . . . . . 1 . . Targeting Errors 17 | . . . . . . . 13 . . 4 . . Weapon Failures 1 | . . . . . . . 1 . . . . . Overload Shots . | . . . . . . . . . . . . . Overflow Damage 197 | . . . 3 4 . . . . . 20 . 170 Projectiles 3 | . . . 3 . . . . . . . . . Explosions 11 | . . . . 4 . . . . . . . 7 Melee 183 | . . . . . . . . . . 20 . 163 Knockbacks 1 | . . . 1 . . . . . . . . . Impact . | . . . . . . . . . . . . . Kinetic 1 | . . . 1 . . . . . . . . . Secondary . | . . . . . . . . . . . . . Self-Inflicted Damage 8 | . 1 . . 7 . . . . . . . . Shots 1 | . . . . 1 . . . . . . . . Rammed 2 | . 1 . . . . . . . . . . 1 Targets Rammed 2 | . 1 . . . . . . . . . . 1 Kicked . | . . . . . . . . . . . . . Crushed . | . . . . . . . . . . . . . Highest Temperature 339 | . . . 6 72 15 3 339 192 131 320 . 327 Average Temperature 104 | . . . 3 37 10 3 107 51 59 126 . 130 Received Heat Transfer 1810 | . 48 . 111 114 . 90 882 60 54 93 . 358 Effects 8 | . . . . . . . 3 . . 5 . . Energy Bleed 4 | . . . . . . . 2 . . 2 . . Interference 4 | . . . . . . . 1 . . 3 . . Siege Activations . | . . . . . . . . . . . . . Robots Corrupted 1 | . . . . . . . . . . . . 1 Combat Hostiles 1 | . . . . . . . . . . . . 1 Parts Fried . | . . . . . . . . . . . . . Impact Corruptions . | . . . . . . . . . . . . . Robots Melted . | . . . . . . . . . . . . . Combat Hostiles . | . . . . . . . . . . . . . Parts Melted 2 | . . . . . . . 2 . . . . . Heat Transferred 1392 | . . . . 50 . . 1242 . . . . 100 Parts Sabotaged . | . . . . . . . . . . . . . Parts Stolen 3 | . . . . . . . . . . 3 . . Parts Stripped . | . . . . . . . . . . . . . Power Chain Reactions 2 | . . . . 1 . . . . . . . 1 Missiles Intercepted . | . . . . . . . . . . . . . Alert | -11 -10 -10 -9 -9 -9 -8 -8 -7 -7 -7 -7 -7 ------- Run | Scr Mat Min Mat Min Exi Min Mat Fac Low Low Zio Dee Peak Influence 1014 | . 15 15 203 218 . 70 1014 557 . . . . Average Influence 307 | . 2 4 115 114 . 60 586 277 . . . . Maximum Alert Level 3 | . . . 1 1 . . 3 2 . . . . Low Security (%) 47 | . 100 100 86 76 . 100 10 39 . . . . Level 1 19 | . . . 13 23 . . 19 26 . . . . Level 2 18 | . . . . . . . 26 33 . . . . Level 3 14 | . . . . . . . 43 . . . . . Level 4 . | . . . . . . . . . . . . . Level 5 . | . . . . . . . . . . . . . High Security . | . . . . . . . . . . . . . Max Security . | . . . . . . . . . . . . . Squads Dispatched 15 | . 1 . . . . . 8 6 . . . . Investigation 3 | . . . . . . . 2 1 . . . . Extermination 1 | . . . . . . . . 1 . . . . Reinforcement 7 | . 1 . . . . . 5 1 . . . . Assault 1 | . . . . . . . 1 . . . . . Garrison 3 | . . . . . . . . 3 . . . . Intercept . | . . . . . . . . . . . . . Construction Impeded . | . . . . . . . . . . . . . Haulers Reinforced . | . . . . . . . . . . . . . Stealth | -11 -10 -10 -9 -9 -9 -8 -8 -7 -7 -7 -7 -7 --------- Run | Scr Mat Min Mat Min Exi Min Mat Fac Low Low Zio Dee Distress Signals 7 | . 2 . 2 . . . 3 . . . . . Communications Jammed . | . . . . . . . . . . . . . Distress Signals . | . . . . . . . . . . . . . Times Spotted 249 | . 6 15 20 24 8 6 75 15 7 12 . 61 Peak Tracking Total 35 | . 6 11 6 4 10 3 9 3 4 2 . 35 Tactical Retreats 19 | . . 1 3 11 . . 1 1 . . . 2 Traps | -11 -10 -10 -9 -9 -9 -8 -8 -7 -7 -7 -7 -7 ------- Run | Scr Mat Min Mat Min Exi Min Mat Fac Low Low Zio Dee Traps Triggered 5 | . . . . . . . 2 3 . . . . Indirectly . | . . . . . . . . . . . . . Trap Hack Attempts . | . . . . . . . . . . . . . Triggered . | . . . . . . . . . . . . . Disarmed . | . . . . . . . . . . . . . Reprogrammed . | . . . . . . . . . . . . . Reused . | . . . . . . . . . . . . . Traps Extracted . | . . . . . . . . . . . . . Installed . | . . . . . . . . . . . . . Triggered . | . . . . . . . . . . . . . Machines | -11 -10 -10 -9 -9 -9 -8 -8 -7 -7 -7 -7 -7 ---------- Run | Scr Mat Min Mat Min Exi Min Mat Fac Low Low Zio Dee Machines Disabled 6 | . . . . . 1 . 2 . . 1 . 2 Max in Single Turn 2 | . . . . . 1 . 1 . . 1 . 2 Machines Sabotaged . | . . . . . . . . . . . . . Garrisons Compromised . | . . . . . . . . . . . . . Overloaded Fab Kills . | . . . . . . . . . . . . . Fab Network Shutdowns 1 | . . . . . . . . 1 . . . . Hacking | -11 -10 -10 -9 -9 -9 -8 -8 -7 -7 -7 -7 -7 --------- Run | Scr Mat Min Mat Min Exi Min Mat Fac Low Low Zio Dee Machines Accessed 14 | . 1 . . . 1 . 6 6 . . . . Terminals 8 | . 1 . . . . . 4 3 . . . . Fabricators 2 | . . . . . . . . 2 . . . . Repair Stations 1 | . . . . . . . 1 . . . . . Recycling Units . | . . . . . . . . . . . . . Scanalyzers 1 | . . . . . . . 1 . . . . . Garrison Access 1 | . . . . . . . . 1 . . . . Total Hacks 30 | . 1 . . . 1 . 14 14 . . . . Successful 16 | . 1 . . . 1 . 8 6 . . . . Failed 14 | . . . . . . . 6 8 . . . . Catastrophic 4 | . . . . . . . 1 3 . . . . Database Lockouts . | . . . . . . . . . . . . . Manual 17 | . . . . . 1 . 8 2 . 1 5 . Terminals 15 | . 1 . . . . . 9 5 . . . . Fabricators 7 | . . . . . . . . 7 . . . . Repair Stations 3 | . . . . . . . 3 . . . . . Recycling Units . | . . . . . . . . . . . . . Scanalyzers 2 | . . . . . . . 2 . . . . . Garrison Access 2 | . . . . . . . . 2 . . . . Terminal Hacks 7 | . 1 . . . 1 . 3 2 . . . . Part Schematic 1 | . . . . . . . 1 . . . . . Branch Access Points 2 | . 1 . . . . . 1 . . . . . Unreport Threat 1 | . . . . . . . . 1 . . . . Locate Traps 2 | . . . . . . . 1 1 . . . . EX-Prototype ID Bank 1 | . . . . . 1 . . . . . . . Fabricator Hacks 4 | . . . . . . . . 4 . . . . Load Schematic 2 | . . . . . . . . 2 . . . . Build 2 | . . . . . . . . 2 . . . . Repair Station Hacks 1 | . . . . . . . 1 . . . . . Refit 1 | . . . . . . . 1 . . . . . Recycling Unit Hacks . | . . . . . . . . . . . . . Scanalyzer 2 | . . . . . . . 2 . . . . . Insert Component 1 | . . . . . . . 1 . . . . . Analyze 1 | . . . . . . . 1 . . . . . Garrison Access Hacks . | . . . . . . . . . . . . . Unauthorized Hacks 2 | . . . . . . . 2 . . . . . Terminals 2 | . . . . . . . 2 . . . . . Track 2 | . . . . . . . 2 . . . . . Fabricators . | . . . . . . . . . . . . . Repair Stations . | . . . . . . . . . . . . . Recycling Units . | . . . . . . . . . . . . . Scanalyzers . | . . . . . . . . . . . . . Garrison Access . | . . . . . . . . . . . . . Data Cores Recovered . | . . . . . . . . . . . . . Used . | . . . . . . . . . . . . . Hacking Detections 12 | . . . . . . . 6 6 . . . . Full Trace Events 2 | . . . . . . . 1 1 . . . . Feedback Events . | . . . . . . . . . . . . . Feedback Blocked . | . . . . . . . . . . . . . Robot Schematics Acquired . | . . . . . . . . . . . . . Robots Built . | . . . . . . . . . . . . . Matter . | . . . . . . . . . . . . . Time . | . . . . . . . . . . . . . Total Robot Build Rating . | . . . . . . . . . . . . . Part Schematics Acquired 2 | . . . . . . . 2 . . . . . Parts Built 2 | . . . . . . . . 2 . . . . Matter 438 | . . . . . . . . 438 . . . . Time 174 | . . . . . . . . 174 . . . . Total Part Build Rating 6 | . . . . . . . . 6 . . . . Parts Repaired . | . . . . . . . . . . . . . Time . | . . . . . . . . . . . . . Parts Recycled . | . . . . . . . . . . . . . Recycled Matter . | . . . . . . . . . . . . . Retrieved Matter . | . . . . . . . . . . . . . Retrieved Components . | . . . . . . . . . . . . . Parts Scanalyzed 1 | . . . . . . . 1 . . . . . Part Schematics Acquired 1 | . . . . . . . 1 . . . . . Parts Damaged . | . . . . . . . . . . . . . Bothacking | -11 -10 -10 -9 -9 -9 -8 -8 -7 -7 -7 -7 -7 ------------ Run | Scr Mat Min Mat Min Exi Min Mat Fac Low Low Zio Dee Used RIF Installer . | . . . . . . . . . . . . . Robots Hacked 1 | . . . . . . . 1 . . . . . Non-combat 1 | . . . . . . . 1 . . . . . Combat . | . . . . . . . . . . . . . Robot Hacks Applied 1 | . . . . . . . 1 . . . . . check_alert 1 | . . . . . . . 1 . . . . . Relay Couplers Released . | . . . . . . . . . . . . . Robots Rewired . | . . . . . . . . . . . . . Allies Hacked . | . . . . . . . . . . . . . Hacks Repelled . | . . . . . . . . . . . . . Allies | -11 -10 -10 -9 -9 -9 -8 -8 -7 -7 -7 -7 -7 -------- Run | Scr Mat Min Mat Min Exi Min Mat Fac Low Low Zio Dee Total Allies 5 | . . 3 . . . . . . . . 2 . Largest Group 3 | . . 3 . . . . . . . . 2 2 Highest-Rated Group 188 | . . 40 . . . . . . . . 188 188 Highest-Rated Ally 94 | . . 16 . . . . . . . . 94 94 Total Orders . | . . . . . . . . . . . . . Ally Attacks 95 | . . 10 . . 21 . . . . . . 64 Total Damage 3317 | . . 122 . . 1130 . . . . . . 2065 Kills 15 | . . 2 . . 6 . . . . . . 7 Allies Corrupted . | . . . . . . . . . . . . . Allies Melted . | . . . . . . . . . . . . . Turrets Deployed 3 | . . . . . 3 . . . . . . . Intel | -11 -10 -10 -9 -9 -9 -8 -8 -7 -7 -7 -7 -7 ------- Run | Scr Mat Min Mat Min Exi Min Mat Fac Low Low Zio Dee Robot Analysis Total . | . . . . . . . . . . . . . Derelict Logs Recovered 7 | . . 1 . 2 . . . . 1 1 2 . Drone Launches . | . . . . . . . . . . . . . Drone Recoveries . | . . . . . . . . . . . . . Exploration | -11 -10 -10 -9 -9 -9 -8 -8 -7 -7 -7 -7 -7 ------------- Run | Scr Mat Min Mat Min Exi Min Mat Fac Low Low Zio Dee Turns Passed 9405 | . 86 489 348 971 574 71 1765 1496 800 926 946 933 Spaces Moved 5276 | 1 69 338 157 551 325 44 849 803 397 435 721 586 Core 106 | . . 30 13 . . 40 23 . . . . . Treads 1846 | . . . 144 43 . . 154 803 397 305 . . Legs 1591 | 1 69 308 . 508 325 4 376 . . . . . Wheels 1730 | . . . . . . . 293 . . 130 721 586 Hover . | . . . . . . . . . . . . . Flight 3 | . . . . . . . 3 . . . . . Fastest Speed 50 | 120 120 50 50 150 150 50 50 165 185 130 130 120 Average Speed 148 | 120 120 141 151 150 164 99 135 167 185 165 130 129 Slowest Speed 800 | 120 120 180 160 180 270 800 250 185 185 225 130 130 Overloaded Moves . | . . . . . . . . . . . . . Propulsion Burnouts . | . . . . . . . . . . . . . Robots Hopped . | . . . . . . . . . . . . . Cave-ins Triggered . | . . . . . . . . . . . . . Exploration Rate (%) 50 | 2 22 64 23 99 62 17 73 29 58 52 84 69 Regions Visited 12 Branch Regions 8 Pre-discovered Areas 4 | . . 1 . 1 . . . . . 1 1 . Known Exits Taken 5 | . 1 . . . . . . 1 1 1 1 . Unknown Exits Taken 7 | 1 . 1 1 1 1 1 1 . . . . . Scrap Searched 10 | . . 2 . 1 . . . . 1 2 4 . Spaces Dug 4 | . . . . . . . 1 3 . . . . Terrain Destroyed 33 | . . . . 7 . . 16 3 . . . 7 Melee 3 | . . . . . . . . 3 . . . . Projectile 23 | . . . . . . . 16 . . . . 7 AOE 7 | . . . . 7 . . . . . . . . Actions | -11 -10 -10 -9 -9 -9 -8 -8 -7 -7 -7 -7 -7 --------- Run | Scr Mat Min Mat Min Exi Min Mat Fac Low Low Zio Dee Total 6315 | . 74 351 216 614 362 58 1248 918 453 556 730 735 Wait 278 | . . 1 15 12 22 . 123 27 45 12 6 15 Move 5264 | . 68 337 156 550 324 43 848 802 396 434 720 586 Hop . | . . . . . . . . . . . . . Pick Up 75 | . 2 3 9 4 5 . 8 20 1 12 3 8 Fast Attach 72 | . . 1 4 3 1 4 40 7 . 4 . 8 Attach 41 | . . . 4 4 2 2 5 7 . 7 . 10 Detach 34 | . . 1 . 1 . . 10 5 . 5 . 12 Swap 42 | . . 2 3 . 1 . 6 9 6 12 . 3 Drop 84 | . 3 5 1 1 5 . 27 10 . 10 1 21 Fire 379 | . . . 24 39 2 7 177 24 5 52 . 49 Melee 39 | . . . . . . 2 4 3 . 8 . 22 Ram 1 | . . . . . . . . . . . . 1 Kick 1 | . 1 . . . . . . . . . . . Crush . | . . . . . . . . . . . . . Escape Stasis 4 | . . . . . . . . 4 . . . . Rewire 1 | . . 1 . . . . . . . . . . Trap . | . . . . . . . . . . . . . Miscellaneous . | . . . . . . . . . . . . . Route ------- -11/Scrapyard -10/Materials (discovered 2 exits: *Min x2) -10/Mines -9/Materials -9/Mines (discovered 3 exits: *Mat x2 / *Exi) -9/Exiles -8/Mines -8/Materials (discovered 2 exits: *Fac x2) -7/Factory (discovered 2 exits: *Fac / *Low) -7/Lower Caves -7/Lower Caves -7/Zion (discovered 2 exits: *Dee / [*Pro]) -7/Deep Caves (discovered 1 exit: [*Pro]) History --------- Turn | Location | Event 1 | -11/Scrapyard | Discovered new exit (range 0) 1 | -11/Scrapyard | Entered Materials 16 | -10/Materials | Identified exit to Mines 87 | -10/Materials | Entered Mines 311 | -10/Mines | Build established: Mutant 346 | -10/Mines | Assisted by bots powering up and referring to "LRC-V3" 496 | -10/Mines | Learned location of Mines (-9) 498 | -10/Mines | Assembled infested the area 503 | -10/Mines | Assisted by a Guerilla fighting off Assembled 570 | -10/Mines | Discovered new exit (range 13) 576 | -10/Mines | Entered Materials 576 | -9/Materials | Evolved 2 slots: Utility x2 581 | -9/Materials | Lost 4 parts (1p1n2w) 917 | -9/Materials | Discovered new exit (range 5) 924 | -9/Materials | Entered Mines 1076 | -9/Mines | Core integrity fell below 50% 1101 | -9/Mines | Discovered new exit (range 5) 1567 | -9/Mines | Learned Materials non-interactive machine intel 1593 | -9/Mines | Discovered new exit (range 9) 1617 | -9/Mines | Found a damaged Exp. Sensor Array with a note attached 1626 | -9/Mines | Found Prototype Device 1752 | -9/Mines | Learned location of Zion (-7) 1857 | -9/Mines | Lost 3 parts (1u2w) 1889 | -9/Mines | Deemed a non-threat by the Exiles lab entrance 1889 | -9/Mines | Discovered new exit (range 5) 1895 | -9/Mines | Entered Exiles 1930 | -9/Exiles | Met 8R-AWN 1957 | -9/Exiles | Met EX-HEX 1997 | -9/Exiles | Met EX-BIN 2015 | -9/Exiles | Aligned with FarCom system 2017 | -9/Exiles | Given EX-Vault access code 2054 | -9/Exiles | Opened EX-Vault 2066 | -9/Exiles | Found Deploy-a-Sentry 2069 | -9/Exiles | Found Deploy-a-Sentry 2071 | -9/Exiles | Found Deploy-a-Sentry 2083 | -9/Exiles | Found Modified TNC 2092 | -9/Exiles | Found XL Autogun Array 2125 | -9/Exiles | Warned to stay clear of 0b10 Research branches 2218 | -9/Exiles | Met EX-DEC 2306 | -9/Exiles | DAS Turret deployed 2310 | -9/Exiles | DAS Turret deployed 2312 | -9/Exiles | DAS Turret deployed 2321 | -9/Exiles | Attacked by the Exiles 2412 | -9/Exiles | Lost 5 parts (2n3w) 2438 | -9/Exiles | Discovered new exit (range 15) 2450 | -9/Exiles | Core integrity fell below 20% 2469 | -9/Exiles | Stole two prototypes: Modified TNC, XL Autogun Array 2469 | -9/Exiles | Entered Mines 2520 | -8/Mines | Released all parts (9) 2521 | -8/Mines | Identified Exp. Sensor Array 2535 | -8/Mines | Discovered new exit (range 9) 2540 | -8/Mines | Entered Materials 2540 | -8/Materials | Evolved 2 slots: Weapon x2 2541 | -8/Materials | Loaded intel: 27 non-interactive machine locations 3340 | -8/Materials | First assault squad dispatched 3611 | -8/Materials | Build established: Tank 3678 | -8/Materials | Discovered new exit (range 3) 4003 | -8/Materials | Discovered new exit (range 5) 4060 | -8/Materials | Core integrity fell below 50% 4305 | -8/Materials | Entered Factory 4305 | -7/Factory | Evolved 2 slots: Utility x2 4799 | -7/Factory | Discovered new exit (range 5) 4808 | -7/Factory | Identified exit to Factory 5145 | -7/Factory | Build established: Hauler-Skirmisher 5154 | -7/Factory | Garrison activated, responded to threat 5545 | -7/Factory | Fabricated Enh. Autogun? 5637 | -7/Factory | Fabricated Enh. Autogun (x1) 5695 | -7/Factory | Local fabrication network quarantined 5763 | -7/Factory | Discovered new exit (range 7) 5799 | -7/Factory | Identified exit to Lower Caves 5801 | -7/Factory | Entered Lower Caves 5992 | -7/Lower Caves | Learned Factory garrison access intel 6593 | -7/Lower Caves | Discovered new exit (range 6) 6599 | -7/Lower Caves | Identified exit to Lower Caves 6601 | -7/Lower Caves | Entered another Lower Caves area 6615 | -7/Lower Caves | Acquired the password to a Derelict Tinkerer's latest research 6629 | -7/Lower Caves | Found Prototype Special Weapon 6664 | -7/Lower Caves | Encountered a Warlord checkpoint 6777 | -7/Lower Caves | Caught by Unaware searching for contraband prototypes 6801 | -7/Lower Caves | Spotted 3L-PQ3(f) 6803 | -7/Lower Caves | Encountered a Master Thief 7005 | -7/Lower Caves | Spotted GR-GE2(f) 7006 | -7/Lower Caves | Encountered a Master Thief 7006 | -7/Lower Caves | Spotted 44-XL8(f) 7007 | -7/Lower Caves | Encountered a Master Thief 7007 | -7/Lower Caves | Exp. Sensor Array stolen by Master Thief 7012 | -7/Lower Caves | Imp. Cooling System stolen by Master Thief 7103 | -7/Lower Caves | Spotted B-75 Beast 7190 | -7/Lower Caves | Destroyed B-75 Beast 7207 | -7/Lower Caves | Caught by Unaware searching for contraband prototypes 7327 | -7/Lower Caves | Spotted WL-S6N(f) 7328 | -7/Lower Caves | Encountered a Master Thief 7328 | -7/Lower Caves | Spotted 54-NOA(f) 7329 | -7/Lower Caves | Encountered a Master Thief 7332 | -7/Lower Caves | Nanoactuators stolen by Master Thief 7346 | -7/Lower Caves | Destroyed 54-NOA(f) 7504 | -7/Lower Caves | Discovered new exit (range 18) 7526 | -7/Lower Caves | Identified exit to Zion 7527 | -7/Lower Caves | Entered Zion 7576 | -7/Zion | System corruption cleaned by Quarantine Array 7627 | -7/Zion | Build established: Hauler-Mutant 7674 | -7/Zion | Discovered new exit (range 15) 7726 | -7/Zion | Learned Factory stockpile data 8023 | -7/Zion | Found Prototype Device 8220 | -7/Zion | Acquired unknown access codes intercepted by a Zionite 8245 | -7/Zion | Given A8's code to call for help 8436 | -7/Zion | Enhanced Grunt warped into view, answering call for help 8438 | -7/Zion | Enhanced Grunt warped into view, answering call for help 8440 | -7/Zion | Opened final containment barrier to the Deep Caves 8460 | -7/Zion | Discovered new exit (range 3) 8460 | -7/Zion | Saw the warning signs outside the Deep Caves entrance 8464 | -7/Zion | Identified exit to Deep Caves 8473 | -7/Zion | Entered Deep Caves 8473 | -7/Deep Caves | Accompanied by 2 allies 8539 | -7/Deep Caves | Identified Phasing AFG 8566 | -7/Deep Caves | Attacked by Z-Imprinter 8574 | -7/Deep Caves | Allies destroyed Z-Imprinter 8605 | -7/Deep Caves | Found Prototype Device 8605 | -7/Deep Caves | Identified Zio. Metafield Generator 8628 | -7/Deep Caves | Found Prototype Protection 8628 | -7/Deep Caves | Identified Zio. Weapon Casing 8734 | -7/Deep Caves | Core integrity fell below 50% 8755 | -7/Deep Caves | Found Zio. Weapon Casing 9056 | -7/Deep Caves | Build established: Hauler-Tank 9214 | -7/Deep Caves | Discovered new exit (range 6) 9275 | -7/Deep Caves | Spotted as-95337 9288 | -7/Deep Caves | Destroyed as-95337 9324 | -7/Deep Caves | Triggered Deep Caves wall 9327 | -7/Deep Caves | Exposed GOLEM chamber 9377 | -7/Deep Caves | Core integrity fell below 20% 9406 | -7/Deep Caves | Self-destructed Last Messages --------------- 09355_ as-12491 destroyed. 09358_ Destroyed Asb. F-torch. 09359_ Destroyed Asb. Hover Unit. 09359_ as-72423 destroyed. 09361_ as-34127 destroyed. 09365_ Destroyed Asb. Hover Unit. 09365_ Destroyed Asb. F-torch. 09367_ as-01586 destroyed. 09373_ Destroyed Asb. Heavy Rifle. 09377_ as-23231 destroyed. 09384_ Destroyed Asb. Heavy Rifle. 09384_ Destroyed Asb. Hover Unit. 09386_ as-99304 destroyed. 09388_ Zio. Light DM Reactor destroyed. 09388_ Greatsword destroyed. 09389_ as-78027 destroyed. 09390_ as-91028 destroyed. 09391_ Slammed into as-50064. 09394_ System corrupted: Energy discharge (-22). 09399_ Microactuators destroyed. Map ----- +----------------------------------------------------+ | ???????????????????????????????## | | ??????????????????????????????## | | ??????????????????????????????# | | ??????????????????????????????# | | ??????????????????????????????# | | ??????????????????????????????# | | ????????? ????????????????# | | ??????? ??????????????# | | ??????? // ???????????# | | ??????? [ ???# | | ??????? ##?## | | ???????? #??## | | ???????? [[ #??## | | ???????? #??# | | ????????# #??# | | ????????" [ [ [ #??# | | ???????"" ! #??## | | ???????? *!! |[ [ #???## | | ???????"" ! ##???# | | ???????" ]! [ ##??# | | ????????# ! "#??? | | ????????" a #???? | | ????????" ! ##### | | ????????"* | | | ????????"""a ! | | ????????"@a ! / | | ????????""a M ##### | | ????????" a #???? | | ????????"" ##???? | | ????????" # # #????? | | ????????" #### ## ## ##????? | | ????????""" ###??# ## ####?????? | | ?????????" ????#### #????????? | | ?????????######????????#?????????? | | | | | | | | | | | | | | | | | | | | | | | | | | | | | | | | | +----------------------------------------------------+ Best States ------------- Heat Dissipation 61 Energy Generation 27 Energy Capacity 1100 Matter Stores 300 Matter Capacity 300 Sight Range 22 Robot Scan Range 30 Terrain Scan Density 10 Armor Coverage 225 Resistance: KI 30 Core Shielding 20 Utility Shielding 66 Weapon Shielding 100 Melee Speed Boost 50 Evasion (%) 50 Recoil Reduction 2 Salvage Targeting 4 Item Schematics ----------------- Enh. Autogun | -8/Materials | Scanalyzed Lrg. Storage Unit | -8/Materials | Hacked Robot Schematics ------------------ None Fabricated ------------ Enh. Autogun | x1 | -7/Factory Enh. Autogun | x1 | -7/Factory Alien Tech Used ----------------- None Achievements -------------- None Challenges ------------ None Game ------ Seed ModifiedLaserSabre Manual? 0 Play Time 01:29:42 Cumulative 852.9 hours Start 2020.08.03 @ 00:30:31 End 2020.08.03 @ 09:16:55 Sessions 2 Manual Loads 0 Difficulty Rogue Special Mode None Game No. 268 Rogue 268 Adventurer 0 Explorer 0 Win Type - Total 51 Types 39/1/3/3/3/1/1 Lore% 97 Gallery% 99 Achievement% 97 Wizard Run 0 Options --------- ASCII 0 Keyboard 1 Movement Numpad Keybinds 0 Fullscreen 1 Font 18/SmallcapsGlow Map View 76x50 Tactical HUD 1 Map Filters NONE Filters NONE Steam 1 RUN: febe9cef-8b44-457d-bc25-f1d9e8ed4ff4